[Event "Early-Titled-Tuesday-Blitz-May-28-2024"]
[Site "Chess.com"]
[Date "2024.05.28"]
[Round "2"]
[White "Veleamater"]
[Black "DonJuanEGenaro"]
[Result "1-0"]
[WhiteElo "2440"]
[BlackElo "1990"]
[TimeControl "180+1"]
[EndTime "8:15:58 PDT"]
[Termination "Veleamater won by resignation"]

1. g3 {[%clk 0:03:00.9]} 1... d5 {[%clk 0:02:59]} 2. Bg2 {[%clk 0:03:00]} 2...
c6 {[%clk 0:02:59.1]} 3. d3 {[%clk 0:03:00.5]} 3... e5 {[%clk 0:02:58.4]} 4. Nf3
{[%clk 0:03:01]} 4... Bd6 {[%clk 0:02:58.2]} 5. O-O {[%clk 0:03:01.4]} 5... Bg4
{[%clk 0:02:57.9]} 6. Nc3 {[%clk 0:03:01.5]} 6... Qd7 {[%clk 0:02:57.8]} 7. e4
{[%clk 0:03:01]} 7... d4 {[%clk 0:02:55.8]} 8. Ne2 {[%clk 0:03:00.7]} 8... h5
{[%clk 0:02:42.7]} 9. Nh4 {[%clk 0:02:54.1]} 9... Be7 {[%clk 0:02:30.8]} 10. Nf5
{[%clk 0:02:52.8]} 10... Bxf5 {[%clk 0:02:29.5]} 11. exf5 {[%clk 0:02:53]} 11...
Qxf5 {[%clk 0:02:23.6]} 12. f4 {[%clk 0:02:52.8]} 12... Nf6 {[%clk 0:02:10.1]}
13. fxe5 {[%clk 0:02:47.5]} 13... Qxe5 {[%clk 0:02:08]} 14. Bf4 {[%clk
0:02:47.5]} 14... Qc5 {[%clk 0:02:03]} 15. c3 {[%clk 0:02:46.4]} 15... dxc3+
{[%clk 0:01:59]} 16. d4 {[%clk 0:02:45.4]} 16... Qc4 {[%clk 0:01:48]} 17. Nxc3
{[%clk 0:02:44.7]} 17... Na6 {[%clk 0:01:24.7]} 18. Re1 {[%clk 0:02:37.9]} 18...
Rd8 {[%clk 0:01:21.7]} 19. Qf3 {[%clk 0:02:31.6]} 19... Rxd4 {[%clk 0:01:00]}
20. Be5 {[%clk 0:02:31.1]} 20... Rd3 {[%clk 0:00:54.5]} 21. Qf5 {[%clk
0:02:23.2]} 21... Qe6 {[%clk 0:00:17.8]} 22. Qxd3 {[%clk 0:02:15.3]} 1-0

[Event "Early-Titled-Tuesday-Blitz-May-28-2024"]
[Site "Chess.com"]
[Date "2024.05.28"]
[Round "2"]
[White "PattyCastillo"]
[Black "verrbaa"]
[Result "0-1"]
[WhiteElo "1830"]
[BlackElo "2439"]
[TimeControl "180+1"]
[EndTime "8:16:09 PDT"]
[Termination "verrbaa won by resignation"]

1. d4 {[%clk 0:03:00.2]} 1... Nf6 {[%clk 0:02:59.5]} 2. Nf3 {[%clk 0:02:59.5]}
2... g6 {[%clk 0:02:58.5]} 3. Nc3 {[%clk 0:02:58.3]} 3... d5 {[%clk 0:02:57.8]}
4. e4 {[%clk 0:02:55]} 4... dxe4 {[%clk 0:02:53.9]} 5. Nd2 {[%clk 0:02:50.4]}
5... Bg7 {[%clk 0:02:50.9]} 6. Ndxe4 {[%clk 0:02:49.9]} 6... Nxe4 {[%clk
0:02:49.3]} 7. Nxe4 {[%clk 0:02:50]} 7... Qxd4 {[%clk 0:02:43.8]} 8. Qxd4 {[%clk
0:02:42.3]} 8... Bxd4 {[%clk 0:02:44.7]} 9. Bc4 {[%clk 0:02:37.2]} 9... O-O
{[%clk 0:02:38]} 10. O-O {[%clk 0:02:36.1]} 10... Bf5 {[%clk 0:02:31.1]} 11. Ng5
{[%clk 0:02:33]} 11... Bxc2 {[%clk 0:02:18.4]} 12. Re1 {[%clk 0:02:21.3]} 12...
e5 {[%clk 0:01:49.9]} 13. Nf3 {[%clk 0:02:13.9]} 13... Nc6 {[%clk 0:01:46.3]}
14. Bh6 {[%clk 0:02:12.3]} 14... Rfe8 {[%clk 0:01:38.2]} 15. Nxd4 {[%clk
0:02:10.8]} 15... exd4 {[%clk 0:01:35.3]} 16. Rac1 {[%clk 0:01:59.2]} 16... d3
{[%clk 0:01:27]} 17. Re3 {[%clk 0:01:55.9]} 17... Rxe3 {[%clk 0:01:24.9]} 18.
Bxe3 {[%clk 0:01:54.4]} 18... Rd8 {[%clk 0:01:23.2]} 19. Bd2 {[%clk 0:01:52.5]}
19... Ne5 {[%clk 0:01:16.3]} 20. Bb3 {[%clk 0:01:50.1]} 20... Bxb3 {[%clk
0:01:15.3]} 21. axb3 {[%clk 0:01:50.4]} 21... c6 {[%clk 0:01:15.3]} 22. Kf1
{[%clk 0:01:47.8]} 22... Rd5 {[%clk 0:01:14]} 23. Rc3 {[%clk 0:01:41.9]} 23...
f5 {[%clk 0:01:12.1]} 24. f4 {[%clk 0:01:37.6]} 24... Ng4 {[%clk 0:01:09.6]} 25.
h3 {[%clk 0:01:35.8]} 25... Nf6 {[%clk 0:01:09.7]} 26. Kf2 {[%clk 0:01:29.3]}
26... Ne4+ {[%clk 0:01:09.4]} 27. Ke3 {[%clk 0:01:25.7]} 27... Nxc3 {[%clk
0:01:08.1]} 0-1

[Event "Early-Titled-Tuesday-Blitz-May-28-2024"]
[Site "Chess.com"]
[Date "2024.05.28"]
[Round "2"]
[White "theoneandonlydaaevik"]
[Black "stollenmonster"]
[Result "1/2-1/2"]
[WhiteElo "2612"]
[BlackElo "2897"]
[TimeControl "180+1"]
[EndTime "8:16:12 PDT"]
[Termination "Game drawn by repetition"]

1. d4 {[%clk 0:03:00.9]} 1... Nf6 {[%clk 0:02:59.6]} 2. c4 {[%clk 0:03:00.8]}
2... e6 {[%clk 0:03:00.1]} 3. Nf3 {[%clk 0:02:58.2]} 3... d5 {[%clk 0:03:00.6]}
4. Nc3 {[%clk 0:02:58.2]} 4... Ne4 {[%clk 0:03:01.2]} 5. e3 {[%clk 0:02:18.5]}
5... f5 {[%clk 0:03:00.4]} 6. Bd3 {[%clk 0:02:14.4]} 6... c6 {[%clk 0:03:00.2]}
7. O-O {[%clk 0:02:14.9]} 7... Be7 {[%clk 0:03:00.5]} 8. Ne5 {[%clk 0:02:15.6]}
8... O-O {[%clk 0:03:01.2]} 9. f3 {[%clk 0:02:14.4]} 9... Nxc3 {[%clk
0:03:01.7]} 10. bxc3 {[%clk 0:02:12.4]} 10... Nd7 {[%clk 0:03:02.6]} 11. f4
{[%clk 0:02:12.1]} 11... Nxe5 {[%clk 0:03:02.3]} 12. fxe5 {[%clk 0:02:13]} 12...
Bd7 {[%clk 0:03:02.7]} 13. Bd2 {[%clk 0:02:10.3]} 13... Rb8 {[%clk 0:02:48]} 14.
Rb1 {[%clk 0:02:07.6]} 14... b5 {[%clk 0:02:41.5]} 15. c5 {[%clk 0:02:02.8]}
15... Be8 {[%clk 0:02:39]} 16. a4 {[%clk 0:01:52.2]} 16... a6 {[%clk 0:02:39.2]}
17. axb5 {[%clk 0:01:47]} 17... axb5 {[%clk 0:02:40.1]} 18. Ra1 {[%clk
0:01:46.9]} 18... Bg6 {[%clk 0:02:31]} 19. Ra6 {[%clk 0:01:46]} 19... Qd7 {[%clk
0:02:28.6]} 20. Qc2 {[%clk 0:01:35.2]} 20... Ra8 {[%clk 0:02:19.6]} 21. Rfa1
{[%clk 0:01:34.8]} 21... Rxa6 {[%clk 0:02:19.4]} 22. Rxa6 {[%clk 0:01:35.7]}
22... h5 {[%clk 0:02:16.5]} 23. Qa2 {[%clk 0:01:32.7]} 23... Rc8 {[%clk
0:02:16.2]} 24. Ra7 {[%clk 0:01:27.7]} 24... Rc7 {[%clk 0:02:15.3]} 25. Ra8+
{[%clk 0:01:26.1]} 25... Rc8 {[%clk 0:02:12.9]} 26. Ra7 {[%clk 0:01:25.9]} 26...
Rc7 {[%clk 0:02:13.4]} 27. Ra8+ {[%clk 0:01:24.6]} 27... Rc8 {[%clk 0:01:16.7]}
28. Ra7 {[%clk 0:01:21.6]} 1/2-1/2

[Event "Early-Titled-Tuesday-Blitz-May-28-2024"]
[Site "Chess.com"]
[Date "2024.05.28"]
[Round "2"]
[White "Smiechu"]
[Black "FrenchPlayer2203"]
[Result "0-1"]
[WhiteElo "2430"]
[BlackElo "2103"]
[TimeControl "180+1"]
[EndTime "8:16:34 PDT"]
[Termination "FrenchPlayer2203 won by resignation"]

1. e4 {[%clk 0:03:00.9]} 1... e6 {[%clk 0:02:59.5]} 2. d4 {[%clk 0:02:59.7]}
2... d5 {[%clk 0:03:00]} 3. Bd3 {[%clk 0:02:59.6]} 3... c5 {[%clk 0:02:58]} 4.
exd5 {[%clk 0:02:57.2]} 4... exd5 {[%clk 0:02:57.6]} 5. Nf3 {[%clk 0:02:57.2]}
5... Nf6 {[%clk 0:02:53.8]} 6. O-O {[%clk 0:02:56.8]} 6... Be7 {[%clk
0:02:50.6]} 7. dxc5 {[%clk 0:02:56]} 7... Bxc5 {[%clk 0:02:49.6]} 8. Re1+ {[%clk
0:02:55.6]} 8... Be6 {[%clk 0:02:49]} 9. Ng5 {[%clk 0:02:53.8]} 9... O-O {[%clk
0:02:48.3]} 10. Be3 {[%clk 0:02:49.9]} 10... Bxe3 {[%clk 0:02:24.7]} 11. Rxe3
{[%clk 0:02:47]} 11... Qb6 {[%clk 0:02:24.1]} 12. Nc3 {[%clk 0:02:39.1]} 12...
d4 {[%clk 0:02:00.8]} 13. Nce4 {[%clk 0:02:35]} 13... dxe3 {[%clk 0:01:28.6]}
14. Nxf6+ {[%clk 0:02:33.5]} 14... gxf6 {[%clk 0:01:28.3]} 15. Qh5 {[%clk
0:02:30.9]} 15... exf2+ {[%clk 0:01:20.9]} 16. Kh1 {[%clk 0:02:28.4]} 16... Rd8
{[%clk 0:01:15]} 17. Bxh7+ {[%clk 0:01:26.1]} 17... Kf8 {[%clk 0:01:07.1]} 18.
Ne4 {[%clk 0:01:26.1]} 18... Qxb2 {[%clk 0:00:37.3]} 19. Qh6+ {[%clk 0:01:17.3]}
19... Ke7 {[%clk 0:00:34.6]} 20. Qxf6+ {[%clk 0:01:17]} 20... Qxf6 {[%clk
0:00:34.1]} 0-1

[Event "Early-Titled-Tuesday-Blitz-May-28-2024"]
[Site "Chess.com"]
[Date "2024.05.28"]
[Round "2"]
[White "luachess1"]
[Black "ProtectiveCarrot"]
[Result "0-1"]
[WhiteElo "1669"]
[BlackElo "2433"]
[TimeControl "180+1"]
[EndTime "8:16:40 PDT"]
[Termination "ProtectiveCarrot won on time"]

1. d4 {[%clk 0:03:00.8]} 1... Nf6 {[%clk 0:02:58.5]} 2. Nf3 {[%clk 0:02:56.9]}
2... d5 {[%clk 0:02:58.1]} 3. c4 {[%clk 0:02:54.6]} 3... e6 {[%clk 0:02:56]} 4.
Nc3 {[%clk 0:02:52.5]} 4... a6 {[%clk 0:02:53.8]} 5. cxd5 {[%clk 0:02:45.7]}
5... exd5 {[%clk 0:02:54.7]} 6. Bg5 {[%clk 0:02:39.1]} 6... Be6 {[%clk
0:02:54.9]} 7. e3 {[%clk 0:02:35.3]} 7... Nbd7 {[%clk 0:02:55.4]} 8. Bd3 {[%clk
0:02:29.7]} 8... c6 {[%clk 0:02:55.9]} 9. O-O {[%clk 0:02:29.1]} 9... Bd6 {[%clk
0:02:56.4]} 10. a3 {[%clk 0:02:27.1]} 10... O-O {[%clk 0:02:55.1]} 11. Rc1
{[%clk 0:02:22.9]} 11... Qc7 {[%clk 0:02:54.6]} 12. b4 {[%clk 0:02:15.9]} 12...
Bg4 {[%clk 0:02:51.7]} 13. h3 {[%clk 0:02:13.1]} 13... Bh5 {[%clk 0:02:51.5]}
14. Na4 {[%clk 0:01:56.2]} 14... h6 {[%clk 0:02:43.7]} 15. Bxf6 {[%clk
0:01:49.5]} 15... Nxf6 {[%clk 0:02:44.6]} 16. Nc5 {[%clk 0:01:43.3]} 16... Qe7
{[%clk 0:02:39.1]} 17. Be2 {[%clk 0:01:39.3]} 17... Rfe8 {[%clk 0:02:33]} 18.
Qd2 {[%clk 0:01:31.8]} 18... Ne4 {[%clk 0:02:26.1]} 19. Nxe4 {[%clk 0:01:08.5]}
19... dxe4 {[%clk 0:02:27]} 20. Ne1 {[%clk 0:01:01.3]} 20... Bg6 {[%clk
0:02:26.2]} 21. Rc3 {[%clk 0:00:47.1]} 21... h5 {[%clk 0:02:25.3]} 22. f3 {[%clk
0:00:45.5]} 22... exf3 {[%clk 0:02:16.5]} 23. Nxf3 {[%clk 0:00:36]} 23... a5
{[%clk 0:02:15.7]} 24. Rb3 {[%clk 0:00:31.7]} 24... b5 {[%clk 0:02:11.6]} 25.
Re1 {[%clk 0:00:25.7]} 25... Be4 {[%clk 0:02:10.6]} 26. Qc3 {[%clk 0:00:17.5]}
26... Bd5 {[%clk 0:02:09.5]} 27. Rb2 {[%clk 0:00:05.6]} 27... Qxe3+ {[%clk
0:02:08.4]} 28. Qxe3 {[%clk 0:00:05.7]} 28... Rxe3 {[%clk 0:02:09.3]} 29. Kf2
{[%clk 0:00:05.8]} 29... Rxa3 {[%clk 0:02:07.6]} 0-1

[Event "Early-Titled-Tuesday-Blitz-May-28-2024"]
[Site "Chess.com"]
[Date "2024.05.28"]
[Round "2"]
[White "ozates"]
[Black "ChrisTool2"]
[Result "1-0"]
[WhiteElo "2645"]
[BlackElo "2383"]
[TimeControl "180+1"]
[EndTime "8:16:41 PDT"]
[Termination "ozates won by resignation"]

1. d4 {[%clk 0:03:00.1]} 1... Nf6 {[%clk 0:02:59.3]} 2. Bg5 {[%clk 0:02:59.7]}
2... e6 {[%clk 0:02:57.9]} 3. Nd2 {[%clk 0:02:59.4]} 3... c5 {[%clk 0:02:56.9]}
4. e3 {[%clk 0:02:58.9]} 4... Nc6 {[%clk 0:02:50.3]} 5. c3 {[%clk 0:02:58.5]}
5... d5 {[%clk 0:02:48.8]} 6. f4 {[%clk 0:02:58.3]} 6... Be7 {[%clk 0:02:47.7]}
7. Ngf3 {[%clk 0:02:58.6]} 7... Ng4 {[%clk 0:02:41.8]} 8. Bxe7 {[%clk
0:02:57.1]} 8... Qxe7 {[%clk 0:02:42.7]} 9. Qe2 {[%clk 0:02:56.6]} 9... O-O
{[%clk 0:02:40.2]} 10. h3 {[%clk 0:02:56.5]} 10... Nf6 {[%clk 0:02:39.7]} 11. g4
{[%clk 0:02:55]} 11... Ne4 {[%clk 0:02:38.1]} 12. Nxe4 {[%clk 0:02:54.3]} 12...
dxe4 {[%clk 0:02:38.3]} 13. Nd2 {[%clk 0:02:54.9]} 13... f5 {[%clk 0:02:37.6]}
14. Bg2 {[%clk 0:02:54.3]} 14... cxd4 {[%clk 0:02:31.5]} 15. exd4 {[%clk
0:02:53.9]} 15... Qh4+ {[%clk 0:02:24.2]} 16. Qf2 {[%clk 0:02:53.2]} 16... Qxf2+
{[%clk 0:02:17.9]} 17. Kxf2 {[%clk 0:02:54.1]} 17... fxg4 {[%clk 0:02:12.7]} 18.
hxg4 {[%clk 0:02:54]} 18... Rxf4+ {[%clk 0:02:11.7]} 19. Kg3 {[%clk 0:02:54.6]}
19... e5 {[%clk 0:02:07.2]} 20. Bxe4 {[%clk 0:02:54.5]} 20... Rxg4+ {[%clk
0:02:04.2]} 21. Kf3 {[%clk 0:02:54.9]} 21... exd4 {[%clk 0:01:52.1]} 22. Bxh7+
{[%clk 0:02:47.8]} 22... Kf7 {[%clk 0:01:47.4]} 23. cxd4 {[%clk 0:02:47.4]}
23... Nxd4+ {[%clk 0:01:45.1]} 24. Ke3 {[%clk 0:02:45.6]} 24... Bd7 {[%clk
0:01:35.8]} 25. Raf1+ {[%clk 0:02:43.9]} 25... Ke7 {[%clk 0:01:30.7]} 26. Rhg1
{[%clk 0:02:37]} 26... Rxg1 {[%clk 0:01:05.2]} 27. Rxg1 {[%clk 0:02:37.9]} 27...
Re8 {[%clk 0:01:04.6]} 28. Kxd4 {[%clk 0:02:11.2]} 28... Be6 {[%clk 0:00:59.8]}
29. b3 {[%clk 0:02:07.4]} 29... Rd8+ {[%clk 0:00:57]} 30. Ke3 {[%clk 0:02:07.2]}
30... Kf6 {[%clk 0:00:57.9]} 31. Ne4+ {[%clk 0:02:07.1]} 31... Ke7 {[%clk
0:00:52.4]} 32. Rxg7+ {[%clk 0:02:06.6]} 32... Kf8 {[%clk 0:00:52.9]} 33. Rxb7
{[%clk 0:02:06.2]} 33... Bd5 {[%clk 0:00:51]} 34. Rxa7 {[%clk 0:02:03.2]} 34...
Rc8 {[%clk 0:00:50.5]} 35. Nd6 {[%clk 0:02:01.8]} 35... Rc1 {[%clk 0:00:48.3]}
36. Kd4 {[%clk 0:02:00.3]} 36... Rd1+ {[%clk 0:00:47.5]} 37. Ke5 {[%clk
0:02:00.3]} 37... Rd2 {[%clk 0:00:42.1]} 38. Nf5 {[%clk 0:01:59.8]} 38... Bf7
{[%clk 0:00:39.4]} 39. Ra8+ {[%clk 0:01:53.9]} 39... Be8 {[%clk 0:00:39.7]} 40.
Bg6 {[%clk 0:01:54.5]} 40... Rd5+ {[%clk 0:00:34.8]} 41. Kxd5 {[%clk 0:01:53.7]}
1-0

[Event "Early-Titled-Tuesday-Blitz-May-28-2024"]
[Site "Chess.com"]
[Date "2024.05.28"]
[Round "2"]
[White "NovakRatko"]
[Black "GP9isback23"]
[Result "1-0"]
[WhiteElo "2386"]
[BlackElo "2698"]
[TimeControl "180+1"]
[EndTime "8:16:47 PDT"]
[Termination "NovakRatko won by resignation"]

1. d4 {[%clk 0:02:59]} 1... Nf6 {[%clk 0:02:59.5]} 2. c4 {[%clk 0:02:59.4]} 2...
e6 {[%clk 0:02:59.8]} 3. Bg5 {[%clk 0:02:59.8]} 3... Bb4+ {[%clk 0:02:54.4]} 4.
Nd2 {[%clk 0:02:59.5]} 4... h6 {[%clk 0:02:53.4]} 5. Bxf6 {[%clk 0:02:58.2]}
5... Qxf6 {[%clk 0:02:52.3]} 6. Nf3 {[%clk 0:02:59.1]} 6... Nc6 {[%clk
0:02:47.4]} 7. a3 {[%clk 0:02:58.2]} 7... Bxd2+ {[%clk 0:02:44.2]} 8. Qxd2
{[%clk 0:02:58.2]} 8... d6 {[%clk 0:02:42.8]} 9. e4 {[%clk 0:02:58.1]} 9... e5
{[%clk 0:02:42.6]} 10. d5 {[%clk 0:02:55.2]} 10... Ne7 {[%clk 0:02:31.3]} 11.
Be2 {[%clk 0:02:46.9]} 11... Ng6 {[%clk 0:02:23]} 12. g3 {[%clk 0:02:46.4]}
12... Bh3 {[%clk 0:02:16.3]} 13. Qe3 {[%clk 0:02:40.5]} 13... a5 {[%clk
0:02:10.6]} 14. Nd2 {[%clk 0:02:39.7]} 14... h5 {[%clk 0:02:06.5]} 15. f3 {[%clk
0:02:38.6]} 15... h4 {[%clk 0:01:54.6]} 16. c5 {[%clk 0:02:28]} 16... a4 {[%clk
0:01:25.6]} 17. O-O-O {[%clk 0:02:18.6]} 17... Ra5 {[%clk 0:01:03.2]} 18. cxd6
{[%clk 0:02:13.3]} 18... cxd6 {[%clk 0:01:01.7]} 19. Qb6 {[%clk 0:02:08.1]}
19... Rc5+ {[%clk 0:01:00.2]} 20. Kb1 {[%clk 0:02:07.3]} 20... O-O {[%clk
0:00:57.6]} 21. Nc4 {[%clk 0:02:02.1]} 21... Rxc4 {[%clk 0:00:39.5]} 22. Bxc4
{[%clk 0:02:00.1]} 22... Bg2 {[%clk 0:00:40.1]} 23. Rhg1 {[%clk 0:01:57.6]}
23... h3 {[%clk 0:00:37.1]} 24. Be2 {[%clk 0:01:48.7]} 24... Qe7 {[%clk
0:00:34]} 25. Rc1 {[%clk 0:01:46.7]} 25... Rd8 {[%clk 0:00:20.1]} 26. Rc7 {[%clk
0:01:42.7]} 26... Qg5 {[%clk 0:00:20.6]} 27. Rxb7 {[%clk 0:01:38.6]} 27... Qd2
{[%clk 0:00:17.9]} 28. Qxd8+ {[%clk 0:01:38]} 1-0

[Event "Early-Titled-Tuesday-Blitz-May-28-2024"]
[Site "Chess.com"]
[Date "2024.05.28"]
[Round "2"]
[White "HamedWafa4"]
[Black "el_sporco"]
[Result "1-0"]
[WhiteElo "2771"]
[BlackElo "2525"]
[TimeControl "180+1"]
[EndTime "8:16:48 PDT"]
[Termination "HamedWafa4 won by resignation"]

1. Nf3 {[%clk 0:03:00.9]} 1... Nf6 {[%clk 0:02:55.8]} 2. g3 {[%clk 0:02:58.8]}
2... e6 {[%clk 0:02:55.7]} 3. Bg2 {[%clk 0:02:58.5]} 3... d5 {[%clk 0:02:56.6]}
4. O-O {[%clk 0:02:58.5]} 4... Be7 {[%clk 0:02:57.2]} 5. b3 {[%clk 0:02:55.1]}
5... O-O {[%clk 0:02:57.1]} 6. Bb2 {[%clk 0:02:54.8]} 6... c5 {[%clk 0:02:57.8]}
7. e3 {[%clk 0:02:54.4]} 7... Nc6 {[%clk 0:02:58.3]} 8. c4 {[%clk 0:02:52.3]}
8... a5 {[%clk 0:02:58.3]} 9. Nc3 {[%clk 0:02:51.7]} 9... Ne4 {[%clk 0:02:32.9]}
10. d3 {[%clk 0:02:21.4]} 10... Nxc3 {[%clk 0:02:30.7]} 11. Bxc3 {[%clk
0:02:22.3]} 11... Bf6 {[%clk 0:02:31.2]} 12. Bxf6 {[%clk 0:02:13.2]} 12... Qxf6
{[%clk 0:02:32.1]} 13. Rc1 {[%clk 0:02:13.3]} 13... d4 {[%clk 0:02:19.1]} 14.
exd4 {[%clk 0:01:56.8]} 14... Nxd4 {[%clk 0:02:15.1]} 15. Nxd4 {[%clk
0:01:56.4]} 15... Qxd4 {[%clk 0:02:15.7]} 16. Re1 {[%clk 0:01:56.6]} 16... f5
{[%clk 0:02:12.7]} 17. Qe2 {[%clk 0:01:49.2]} 17... Rd8 {[%clk 0:02:09.8]} 18.
h4 {[%clk 0:01:41.3]} 18... a4 {[%clk 0:02:05.8]} 19. Rb1 {[%clk 0:01:38.1]}
19... axb3 {[%clk 0:01:24.8]} 20. Rxb3 {[%clk 0:01:38.1]} 20... Ra7 {[%clk
0:01:24.6]} 21. Reb1 {[%clk 0:01:28.5]} 21... b6 {[%clk 0:00:31.2]} 22. Rxb6
{[%clk 0:01:26.7]} 22... Qxd3 {[%clk 0:00:31.7]} 23. Qxd3 {[%clk 0:01:27.3]}
23... Rxd3 {[%clk 0:00:32.4]} 24. Rb8 {[%clk 0:01:28.1]} 24... Rd8 {[%clk
0:00:30.9]} 25. Bb7 {[%clk 0:01:26.4]} 25... Kf7 {[%clk 0:00:27.3]} 26. Rxc8
{[%clk 0:01:22.7]} 26... Rxb7 {[%clk 0:00:27.3]} 27. Rxb7+ {[%clk 0:01:22.8]}
1-0

[Event "Early-Titled-Tuesday-Blitz-May-28-2024"]
[Site "Chess.com"]
[Date "2024.05.28"]
[Round "2"]
[White "platy3"]
[Black "djano"]
[Result "1-0"]
[WhiteElo "2886"]
[BlackElo "2586"]
[TimeControl "180+1"]
[EndTime "8:16:49 PDT"]
[Termination "platy3 won by resignation"]

1. e4 {[%clk 0:02:55.7]} 1... c5 {[%clk 0:03:00.2]} 2. Nf3 {[%clk 0:02:54.3]}
2... g6 {[%clk 0:03:00.6]} 3. d4 {[%clk 0:02:50.2]} 3... cxd4 {[%clk 0:03:01.5]}
4. Nxd4 {[%clk 0:02:50.9]} 4... Nf6 {[%clk 0:03:00.4]} 5. Nc3 {[%clk 0:02:50.2]}
5... Nc6 {[%clk 0:03:00.2]} 6. Nxc6 {[%clk 0:02:49.4]} 6... dxc6 {[%clk
0:03:00.9]} 7. Qxd8+ {[%clk 0:02:49.1]} 7... Kxd8 {[%clk 0:03:01.8]} 8. Bc4
{[%clk 0:02:48.5]} 8... Ke8 {[%clk 0:03:01]} 9. Bf4 {[%clk 0:02:48.4]} 9... Nd7
{[%clk 0:02:50.9]} 10. e5 {[%clk 0:02:29.1]} 10... Bg7 {[%clk 0:02:27.6]} 11. e6
{[%clk 0:02:28.9]} 11... fxe6 {[%clk 0:02:28.5]} 12. Bxe6 {[%clk 0:02:28.4]}
12... Ne5 {[%clk 0:02:26.4]} 13. Bb3 {[%clk 0:02:24.9]} 13... Bg4 {[%clk
0:01:58]} 14. f3 {[%clk 0:02:22.3]} 14... Bf5 {[%clk 0:01:50.6]} 15. O-O-O
{[%clk 0:02:21.9]} 15... Rd8 {[%clk 0:01:46.5]} 16. Rxd8+ {[%clk 0:02:13.5]}
16... Kxd8 {[%clk 0:01:47.4]} 17. Re1 {[%clk 0:02:13.6]} 17... Nd7 {[%clk
0:01:16.6]} 18. g4 {[%clk 0:02:12.9]} 18... g5 {[%clk 0:01:16.5]} 19. Bxg5
{[%clk 0:02:10.6]} 19... Bg6 {[%clk 0:01:15.8]} 20. Rxe7 {[%clk 0:02:06.4]}
20... Bh6 {[%clk 0:01:09.4]} 21. Rxd7+ {[%clk 0:02:04.7]} 21... Kxd7 {[%clk
0:01:10.3]} 22. Bxh6 {[%clk 0:02:05.3]} 22... Re8 {[%clk 0:01:06.7]} 23. Kd2
{[%clk 0:02:04.6]} 23... b5 {[%clk 0:01:06]} 24. h4 {[%clk 0:02:04]} 24... Kc7
{[%clk 0:01:02.9]} 25. h5 {[%clk 0:02:02.6]} 25... Rd8+ {[%clk 0:01:03.3]} 26.
Ke3 {[%clk 0:02:02.5]} 26... Be8 {[%clk 0:01:03]} 27. Ne4 {[%clk 0:02:02.7]}
27... Kb6 {[%clk 0:01:02.4]} 28. c3 {[%clk 0:02:01.9]} 28... c5 {[%clk
0:01:00.5]} 29. Bc2 {[%clk 0:01:59.3]} 29... Bc6 {[%clk 0:01:00.4]} 30. Bf4
{[%clk 0:01:57.5]} 30... b4 {[%clk 0:00:59.7]} 31. g5 {[%clk 0:01:57.4]} 31...
bxc3 {[%clk 0:00:59.5]} 32. bxc3 {[%clk 0:01:58.3]} 32... Bd5 {[%clk 0:00:58.6]}
33. Bb3 {[%clk 0:01:55.5]} 33... c4 {[%clk 0:00:57.4]} 34. Bc2 {[%clk
0:01:55.6]} 34... Bf7 {[%clk 0:00:57.9]} 35. g6 {[%clk 0:01:54]} 35... hxg6
{[%clk 0:00:57.8]} 36. h6 {[%clk 0:01:54.7]} 36... Re8 {[%clk 0:00:54.8]} 37.
Bg5 {[%clk 0:01:53]} 37... Bg8 {[%clk 0:00:53.7]} 38. Bf6 {[%clk 0:01:50]} 38...
g5 {[%clk 0:00:52.5]} 39. Bxg5 {[%clk 0:01:49.8]} 39... Bh7 {[%clk 0:00:52.8]}
40. Kf4 {[%clk 0:01:50.2]} 40... Rf8+ {[%clk 0:00:52.8]} 41. Kg3 {[%clk
0:01:50.3]} 41... Rg8 {[%clk 0:00:53.4]} 42. Kh4 {[%clk 0:01:49.9]} 42... Rf8
{[%clk 0:00:52.5]} 43. Nf6 {[%clk 0:01:43.9]} 43... Rxf6 {[%clk 0:00:49]} 44.
Bxf6 {[%clk 0:01:40.3]} 44... Bxc2 {[%clk 0:00:48.9]} 45. Bd4+ {[%clk
0:01:41.1]} 45... Kb7 {[%clk 0:00:48.2]} 46. Kg5 {[%clk 0:01:42]} 1-0

[Event "Early-Titled-Tuesday-Blitz-May-28-2024"]
[Site "Chess.com"]
[Date "2024.05.28"]
[Round "2"]
[White "LoaySameer"]
[Black "rhwr"]
[Result "1-0"]
[WhiteElo "2519"]
[BlackElo "2297"]
[TimeControl "180+1"]
[EndTime "8:16:50 PDT"]
[Termination "LoaySameer won by resignation"]

1. d4 {[%clk 0:03:00.9]} 1... Nf6 {[%clk 0:02:58.2]} 2. Nf3 {[%clk 0:03:01]}
2... g6 {[%clk 0:02:57.7]} 3. c4 {[%clk 0:03:01]} 3... Bg7 {[%clk 0:02:58.3]} 4.
Nc3 {[%clk 0:03:01.2]} 4... O-O {[%clk 0:02:59.2]} 5. e4 {[%clk 0:03:01.4]} 5...
d6 {[%clk 0:02:59.5]} 6. h3 {[%clk 0:03:01.8]} 6... c5 {[%clk 0:02:57.3]} 7. d5
{[%clk 0:03:01.2]} 7... e6 {[%clk 0:02:55.2]} 8. Bd3 {[%clk 0:03:01.7]} 8...
exd5 {[%clk 0:02:55.3]} 9. exd5 {[%clk 0:03:02.6]} 9... Re8+ {[%clk 0:02:55.1]}
10. Be3 {[%clk 0:03:03.2]} 10... Nbd7 {[%clk 0:02:54.1]} 11. O-O {[%clk
0:03:03.7]} 11... a6 {[%clk 0:02:53.4]} 12. Qd2 {[%clk 0:03:01.3]} 12... Rb8
{[%clk 0:02:51]} 13. a4 {[%clk 0:03:01.2]} 13... b6 {[%clk 0:02:49.6]} 14. Bh6
{[%clk 0:02:56.2]} 14... Bh8 {[%clk 0:02:48.9]} 15. Rae1 {[%clk 0:02:55.9]}
15... Nh5 {[%clk 0:02:22.6]} 16. g4 {[%clk 0:02:50.9]} 16... Nhf6 {[%clk
0:02:18.7]} 17. Bf4 {[%clk 0:02:48.1]} 17... Nf8 {[%clk 0:02:15.4]} 18. Ng5
{[%clk 0:02:42.2]} 18... h5 {[%clk 0:02:04.6]} 19. Nce4 {[%clk 0:02:18.9]} 19...
Nxe4 {[%clk 0:01:56.7]} 20. Nxe4 {[%clk 0:02:18.1]} 20... Be5 {[%clk 0:01:55.2]}
21. Bg5 {[%clk 0:02:05.8]} 21... f6 {[%clk 0:01:44.6]} 22. Nxf6+ {[%clk
0:02:02.6]} 22... Bxf6 {[%clk 0:01:41.8]} 23. Bxf6 {[%clk 0:01:28]} 23... Qd7
{[%clk 0:01:21.5]} 24. Qh6 {[%clk 0:01:23]} 24... Bb7 {[%clk 0:00:23.7]} 25.
Qh8+ {[%clk 0:01:18.7]} 1-0